[Event "Schack-SM 2023: Veteran-SM 65+"]
[Site "Helsingborg Arena, Mellersta Stenbocksgatan 14, Helsingborg, Sweden"]
[Date "2023.07.08"]
[Round "8.6"]
[White "Blomstrom, Lars"]
[Black "Franzen Hogberg, Thomas"]
[Result "1-0"]
[TimeControl "90 minutes for 40 moves + 30 minutes for the rest of games + 30 seconds per move from move one."]
[WhiteElo "2021"]
[BlackElo "1998"]

1. e4 {[%clk 01:30:54]} {[%emt 00:00:06]} c5 {[%clk 01:30:40]} {[%emt
00:00:21]} 2. Nc3 {[%clk 01:31:15]} {[%emt 00:00:09]} Nc6 {[%clk 01:29:43]}
{[%emt 00:01:27]} 3. Nf3 {[%clk 01:28:18]} {[%emt 00:03:27]} g6 {[%clk
01:29:28]} {[%emt 00:00:45]} 4. d4 {[%clk 01:27:33]} {[%emt 00:01:14]} cxd4
{[%clk 01:29:42]} {[%emt 00:00:16]} 5. Nxd4 {[%clk 01:28:01]} {[%emt 00:00:03]}
Bg7 {[%clk 01:29:54]} {[%emt 00:00:17]} 6. Nb3 {[%clk 01:27:24]} {[%emt
00:01:07]} d6 {[%clk 01:25:27]} {[%emt 00:04:58]} 7. Be2 {[%clk 01:27:02]}
{[%emt 00:00:51]} Nf6 {[%clk 01:24:55]} {[%emt 00:01:02]} 8. O-O {[%clk
01:26:42]} {[%emt 00:00:51]} O-O {[%clk 01:25:17]} {[%emt 00:00:08]} 9. Bg5
{[%clk 01:27:03]} {[%emt 00:00:08]} a6 {[%clk 01:20:46]} {[%emt 00:05:02]} 10.
f4 {[%clk 01:20:15]} {[%emt 00:07:18]} b5 {[%clk 01:17:07]} {[%emt 00:04:09]}
11. a3 {[%clk 01:11:12]} {[%emt 00:09:33]} Bb7 {[%clk 01:15:25]} {[%emt
00:02:11]} 12. Kh1 {[%clk 00:59:19]} {[%emt 00:12:23]} Rc8 {[%clk 01:10:59]}
{[%emt 00:04:56]} 13. Bf3 {[%clk 00:54:29]} {[%emt 00:05:20]} Ba8 {[%clk
00:56:16]} {[%emt 00:15:13]} 14. Qe2 {[%clk 00:46:53]} {[%emt 00:08:06]} Re8
{[%clk 00:49:28]} {[%emt 00:07:18]} 15. Rad1 {[%clk 00:45:23]} {[%emt
00:02:00]} Qc7 {[%clk 00:46:20]} {[%emt 00:03:39]} 16. Qf2 {[%clk 00:41:00]}
{[%emt 00:04:52]} Qa7 {[%clk 00:38:28]} {[%emt 00:08:22]} 17. Qh4 {[%clk
00:36:32]} {[%emt 00:04:58]} Nd7 {[%clk 00:30:43]} {[%emt 00:08:15]} 18. Bh6
{[%clk 00:29:06]} {[%emt 00:07:56]} Nd8 {[%clk 00:25:53]} {[%emt 00:05:21]} 19.
Bxg7 {[%clk 00:26:35]} {[%emt 00:03:01]} Kxg7 {[%clk 00:26:13]} {[%emt
00:00:09]} 20. Nd4 {[%clk 00:22:44]} {[%emt 00:04:20]} e5 {[%clk 00:19:11]}
{[%emt 00:07:34]} 21. Nde2 {[%clk 00:22:44]} {[%emt 00:00:30]} Qc7 {[%clk
00:17:34]} {[%emt 00:02:07]} 22. Bg4 {[%clk 00:20:50]} {[%emt 00:02:22]} Ne6
{[%clk 00:17:15]} {[%emt 00:00:50]} 23. f5 {[%clk 00:18:03]} {[%emt 00:03:18]}
Nf4 {[%clk 00:14:47]} {[%emt 00:02:58]} 24. Nxf4 {[%clk 00:16:33]} {[%emt
00:01:58]} exf4 {[%clk 00:14:21]} {[%emt 00:00:57]} 25. f6+ {[%clk 00:16:23]}
{[%emt 00:00:40]} Nxf6 {[%clk 00:13:57]} {[%emt 00:00:54]} 26. Bxc8 {[%clk
00:16:42]} {[%emt 00:00:11]} Rxc8 {[%clk 00:10:57]} {[%emt 00:03:30]} 27. Qxf4
{[%clk 00:16:51]} {[%emt 00:00:21]} Ne8 {[%clk 00:11:13]} {[%emt 00:00:14]} 28.
Nd5 {[%clk 00:14:09]} {[%emt 00:03:12]} Qd8 {[%clk 00:07:46]} {[%emt 00:03:58]}
29. Qxf7+ {[%clk 00:14:27]} {[%emt 00:00:12]} Kh6 {[%clk 00:07:56]} {[%emt
00:00:20]} 30. Rd3 {[%clk 00:14:08]} {[%emt 00:00:48]} Ng7 {[%clk 00:06:09]}
{[%emt 00:02:18]} 31. Rh3+ {[%clk 00:12:25]} {[%emt 00:02:13]} Nh5 {[%clk
00:06:22]} {[%emt 00:00:16]} 32. Rxh5+ {[%clk 00:09:37]} {[%emt 00:03:18]} Kxh5
{[%clk 00:06:40]} {[%emt 00:00:13]} 33. Qxh7+ {[%clk 00:10:02]} {[%emt
00:00:03]} Kg5 {[%clk 00:06:59]} {[%emt 00:00:12]} 34. h4+ {[%clk 00:10:22]}
{[%emt 00:00:10]} Kg4 {[%clk 00:07:18]} {[%emt 00:00:11]} 35. Ne3+ {[%clk
00:10:49]} {[%emt 00:00:03]} Kg3 {[%clk 00:07:37]} {[%emt 00:00:11]} 36. Rf3#
{[%clk 00:10:25]} {[%emt 00:00:03]} 1-0

[Event "Schack-SM 2023: Veteran-SM 50+"]
[Site "Helsingborg Arena, Mellersta Stenbocksgatan 14, Helsingborg, Sweden"]
[Date "2023.07.08"]
[Round "8.6"]
[White "Svensson, Hakan"]
[Black "Johansson, Ingemar 1966"]
[Result "0-1"]
[TimeControl "90 minutes for 40 moves + 30 minutes for the rest of games + 30 seconds per move from move one."]
[WhiteElo "2054"]
[BlackElo "1839"]

1. e4 {[%clk 01:30:50]} {[%emt 00:00:09]} e6 {[%clk 01:30:52]} {[%emt
00:00:08]} 2. d4 {[%clk 01:31:15]} {[%emt 00:00:06]} d5 {[%clk 01:31:16]}
{[%emt 00:00:06]} 3. e5 {[%clk 01:31:40]} {[%emt 00:00:05]} c5 {[%clk
01:31:20]} {[%emt 00:00:25]} 4. c3 {[%clk 01:32:05]} {[%emt 00:00:05]} Qb6
{[%clk 01:31:02]} {[%emt 00:00:49]} 5. Nf3 {[%clk 01:32:28]} {[%emt 00:00:06]}
Nc6 {[%clk 01:30:13]} {[%emt 00:01:19]} 6. Be2 {[%clk 01:32:48]} {[%emt
00:00:10]} cxd4 {[%clk 01:26:58]} {[%emt 00:03:46]} 7. O-O {[%clk 01:32:58]}
{[%emt 00:00:20]} dxc3 {[%clk 01:25:29]} {[%emt 00:01:59]} 8. bxc3 {[%emt
00:07:38]} Nge7 {[%clk 01:18:09]} {[%emt 00:00:20]} 9. c4 {[%clk 01:33:11]}
{[%emt 00:00:38]} d4 {[%clk 01:15:27]} {[%emt 00:03:13]} 10. Nbd2 {[%clk
01:31:39]} {[%emt 00:02:01]} Ng6 {[%clk 01:10:57]} {[%emt 00:05:01]} 11. Rb1
{[%clk 01:26:56]} {[%emt 00:05:12]} Qc7 {[%clk 01:08:01]} {[%emt 00:03:25]} 12.
Ne4 {[%clk 01:08:42]} {[%emt 00:18:44]} Ncxe5 {[%clk 00:59:07]} {[%emt
00:09:25]} 13. Nxd4 {[%clk 01:06:43]} {[%emt 00:02:29]} a6 {[%clk 00:58:01]}
{[%emt 00:01:37]} 14. Qa4+ {[%clk 00:59:43]} {[%emt 00:07:29]} Bd7 {[%clk
00:52:18]} {[%emt 00:06:14]} 15. Qb3 {[%clk 00:59:50]} {[%emt 00:00:22]} Rb8
{[%clk 00:50:22]} {[%emt 00:02:27]} 16. Ba3 {[%clk 00:58:27]} {[%emt 00:01:53]}
Nf4 {[%clk 00:42:18]} {[%emt 00:08:34]} 17. c5 {[%clk 00:34:55]} {[%emt
00:24:01]} Nxe2+ {[%clk 00:38:59]} {[%emt 00:03:50]} 18. Nxe2 {[%clk 00:35:21]}
{[%emt 00:00:04]} Bc6 {[%clk 00:25:28]} {[%emt 00:14:01]} 19. Nd6+ {[%clk
00:33:56]} {[%emt 00:01:54]} Bxd6 {[%clk 00:24:17]} {[%emt 00:01:42]} 20. cxd6
{[%clk 00:34:21]} {[%emt 00:00:05]} Qd7 {[%clk 00:23:36]} {[%emt 00:01:10]} 21.
Qg3 {[%clk 00:30:48]} {[%emt 00:04:03]} Ng6 {[%clk 00:20:12]} {[%emt 00:03:54]}
22. h4 {[%clk 00:23:09]} {[%emt 00:08:08]} h5 {[%clk 00:17:20]} {[%emt
00:03:24]} 23. Nd4 {[%clk 00:16:36]} {[%emt 00:07:02]} O-O {[%clk 00:15:20]}
{[%emt 00:02:29]} 24. Rfc1 {[%clk 00:10:03]} {[%emt 00:07:02]} e5 {[%clk
00:08:45]} {[%emt 00:07:08]} 25. Nxc6 {[%clk 00:05:56]} {[%emt 00:04:37]} bxc6
{[%clk 00:09:01]} {[%emt 00:00:14]} 26. Rxb8 {[%clk 00:05:15]} {[%emt
00:01:11]} Rxb8 {[%clk 00:09:19]} {[%emt 00:00:11]} 27. Qf3 {[%clk 00:05:29]}
{[%emt 00:00:15]} Rc8 {[%clk 00:05:06]} {[%emt 00:04:45]} 28. g3 {[%clk
00:05:38]} {[%emt 00:00:20]} Nf8 {[%clk 00:05:10]} {[%emt 00:00:26]} 29. Qxh5
{[%clk 00:05:40]} {[%emt 00:00:28]} Qe6 {[%clk 00:04:43]} {[%emt 00:00:57]} 30.
Qe2 {[%clk 00:05:41]} {[%emt 00:00:28]} a5 {[%clk 00:02:12]} {[%emt 00:03:02]}
31. Qa6 {[%clk 00:05:04]} {[%emt 00:01:07]} Qd7 {[%clk 00:02:01]} {[%emt
00:00:41]} 32. Qxa5 {[%clk 00:05:19]} {[%emt 00:00:15]} f6 {[%clk 00:02:09]}
{[%emt 00:00:23]} 33. Qc3 {[%clk 00:03:33]} {[%emt 00:02:14]} Ne6 {[%clk
00:02:06]} {[%emt 00:00:35]} 34. Bc5 {[%clk 00:03:45]} {[%emt 00:00:18]} Rd8
{[%clk 00:00:46]} {[%emt 00:01:50]} 35. Qc4 {[%clk 00:02:44]} {[%emt 00:01:30]}
Kf7 {[%clk 00:00:58]} {[%emt 00:00:18]} 36. a4 {[%clk 00:02:43]} {[%emt
00:00:31]} Ra8 {[%clk 00:01:06]} {[%emt 00:00:22]} 37. Ba3 {[%clk 00:02:24]}
{[%emt 00:00:49]} Ra5 {[%clk 00:00:57]} {[%emt 00:00:39]} 38. Qb3 {[%clk
00:01:33]} {[%emt 00:01:21]} Rd5 {[%clk 00:01:08]} {[%emt 00:00:19]} 39. Bb4
{[%clk 00:00:31]} {[%emt 00:01:33]} Nd4 {[%clk 00:01:01]} {[%emt 00:00:37]} 40.
Qe3 {[%clk 00:00:32]} {[%emt 00:00:27]} Qg4 {[%clk 00:00:59]} {[%emt 00:00:33]}
41. Rb1 {[%clk 00:24:10]} {[%emt 00:06:41]} Nf3+ {[%clk 00:20:18]} {[%emt
00:11:22]} 42. Kf1 {[%clk 00:16:24]} {[%emt 00:08:15]} Qh3+ {[%clk 00:17:55]}
{[%emt 00:02:54]} 0-1

[Event "Schack-SM 2023: Mastarklassen"]
[Site "Helsingborg Arena, Mellersta Stenbocksgatan 14, Helsingborg, Sweden"]
[Date "2023.07.08"]
[Round "8.3"]
[White "Nilsson, Patrik 1978"]
[Black "Nygren, David"]
[Result "1/2-1/2"]
[TimeControl "90 minutes for 40 moves + 30 minutes for the rest of games + 30 seconds per move from move one."]
[WhiteElo "2167"]
[BlackElo "2157"]

1. f4 {[%clk 01:30:54]} {[%emt 00:00:04]} Nh6 {[%clk 01:29:40]} {[%emt
00:01:21]} 2. Nf3 {[%clk 01:29:51]} {[%emt 00:01:32]} d6 {[%clk 01:29:27]}
{[%emt 00:00:45]} 3. g3 {[%clk 01:21:18]} {[%emt 00:09:02]} e5 {[%clk
01:24:03]} {[%emt 00:05:54]} 4. d3 {[%clk 01:20:31]} {[%emt 00:01:16]} Nc6
{[%clk 01:22:25]} {[%emt 00:02:09]} 5. Bg2 {[%clk 01:18:21]} {[%emt 00:02:40]}
Bg4 {[%clk 01:18:08]} {[%emt 00:04:46]} 6. e4 {[%clk 01:11:22]} {[%emt
00:07:29]} d5 {[%clk 01:15:41]} {[%emt 00:02:58]} 7. c3 {[%clk 01:06:05]}
{[%emt 00:05:48]} Bc5 {[%clk 01:11:55]} {[%emt 00:04:16]} 8. h3 {[%clk
01:02:55]} {[%emt 00:03:39]} dxe4 {[%clk 01:09:37]} {[%emt 00:02:48]} 9. hxg4
{[%clk 00:58:47]} {[%emt 00:04:39]} exf3 {[%clk 01:08:55]} {[%emt 00:01:12]} 10.
Qxf3 {[%clk 00:56:16]} {[%emt 00:03:00]} Qd6 {[%clk 01:03:41]} {[%emt
00:05:44]} 11. Nd2 {[%clk 00:51:36]} {[%emt 00:05:10]} O-O-O {[%clk 00:52:37]}
{[%emt 00:11:34]} 12. Ne4 {[%clk 00:47:50]} {[%emt 00:04:16]} Qe7 {[%clk
00:49:03]} {[%emt 00:04:03]} 13. f5 {[%clk 00:47:16]} {[%emt 00:01:04]} Ng8
{[%clk 00:44:13]} {[%emt 00:05:21]} 14. Bg5 {[%clk 00:32:09]} {[%emt 00:15:37]}
f6 {[%clk 00:41:03]} {[%emt 00:03:40]} 15. Bd2 {[%clk 00:32:17]} {[%emt
00:00:22]} Bb6 {[%clk 00:39:58]} {[%emt 00:01:35]} 16. b4 {[%clk 00:25:53]}
{[%emt 00:06:55]} Qd7 {[%clk 00:39:05]} {[%emt 00:01:22]} 17. a4 {[%clk
00:25:51]} {[%emt 00:00:32]} Qxd3 {[%clk 00:31:23]} {[%emt 00:08:12]} 18. Qxd3
{[%clk 00:22:13]} {[%emt 00:04:09]} Rxd3 {[%clk 00:31:47]} {[%emt 00:00:05]} 19.
a5 {[%clk 00:22:18]} {[%emt 00:00:26]} Be3 {[%clk 00:30:27]} {[%emt 00:01:50]}
20. Ke2 {[%clk 00:22:08]} {[%emt 00:00:40]} Rxd2+ {[%clk 00:30:16]} {[%emt
00:00:39]} 21. Nxd2 {[%clk 00:22:30]} {[%emt 00:00:09]} Bxd2 {[%clk 00:29:55]}
{[%emt 00:00:52]} 22. Kxd2 {[%clk 00:21:46]} {[%emt 00:01:14]} Nce7 {[%clk
00:28:34]} {[%emt 00:01:50]} 23. a6 {[%clk 00:19:44]} {[%emt 00:02:32]} b6
{[%clk 00:28:56]} {[%emt 00:00:08]} 24. Ke3 {[%clk 00:19:48]} {[%emt 00:00:26]}
Nh6 {[%clk 00:26:52]} {[%emt 00:02:34]} 25. Bb7+ {[%clk 00:19:50]} {[%emt
00:00:29]} Kb8 {[%clk 00:26:03]} {[%emt 00:01:19]} 26. Bf3 {[%clk 00:18:06]}
{[%emt 00:02:13]} Nc8 {[%clk 00:25:26]} {[%emt 00:01:07]} 27. c4 {[%clk
00:17:20]} {[%emt 00:01:17]} Nd6 {[%clk 00:25:00]} {[%emt 00:00:55]} 28. Be2
{[%clk 00:16:16]} {[%emt 00:01:34]} e4 {[%clk 00:20:11]} {[%emt 00:05:19]} 29.
Rad1 {[%clk 00:14:45]} {[%emt 00:02:02]} Kc8 {[%clk 00:18:50]} {[%emt
00:01:50]} 30. Rd5 {[%clk 00:12:46]} {[%emt 00:02:29]} Ndf7 {[%clk 00:17:04]}
{[%emt 00:02:16]} 31. Kxe4 {[%clk 00:09:36]} {[%emt 00:03:40]} Re8+ {[%clk
00:16:05]} {[%emt 00:01:29]} 32. Kd3 {[%clk 00:08:17]} {[%emt 00:01:49]} Ng5
{[%clk 00:15:47]} {[%emt 00:00:48]} 33. c5 {[%clk 00:07:15]} {[%emt 00:01:32]}
b5 {[%clk 00:13:16]} {[%emt 00:03:01]} 34. c6 {[%clk 00:06:06]} {[%emt
00:01:39]} Ne4 {[%clk 00:13:37]} {[%emt 00:00:09]} 35. Rh2 {[%clk 00:04:28]}
{[%emt 00:02:08]} Nd6 {[%clk 00:13:33]} {[%emt 00:00:35]} 36. Bf3 {[%clk
00:03:52]} {[%emt 00:01:06]} Nhf7 {[%clk 00:13:38]} {[%emt 00:00:25]} 37. Kd4
{[%clk 00:01:43]} {[%emt 00:02:39]} Ng5 {[%clk 00:13:20]} {[%emt 00:00:48]} 38.
Be2 {[%clk 00:01:26]} {[%emt 00:00:46]} Re4+ {[%clk 00:12:57]} {[%emt
00:00:53]} 39. Kc3 {[%clk 00:01:23]} {[%emt 00:00:34]} Re3+ {[%clk 00:13:06]}
{[%emt 00:00:20]} 40. Kc2 {[%clk 00:00:52]} {[%emt 00:01:02]} Ra3 {[%clk
00:12:15]} {[%emt 00:01:20]} 41. Kb2 {[%clk 00:28:43]} {[%emt 00:02:39]} Rxa6
{[%clk 00:41:27]} {[%emt 00:01:18]} 42. Bxb5 {[%clk 00:27:46]} {[%emt
00:01:27]} Rb6 {[%clk 00:40:37]} {[%emt 00:01:20]} 43. Bd3 {[%clk 00:24:48]}
{[%emt 00:03:27]} Rxb4+ {[%clk 00:40:14]} {[%emt 00:00:54]} 44. Kc3 {[%clk
00:24:47]} {[%emt 00:00:31]} Rb6 {[%clk 00:40:28]} {[%emt 00:00:16]} 45. Ra2
{[%clk 00:23:49]} {[%emt 00:01:28]} Rxc6+ {[%clk 00:40:07]} {[%emt 00:00:51]}
46. Kd4 {[%clk 00:22:55]} {[%emt 00:01:23]} Nf3+ {[%clk 00:38:52]} {[%emt
00:01:45]} 47. Ke3 {[%clk 00:22:59]} {[%emt 00:00:27]} Ne5 {[%clk 00:39:05]}
{[%emt 00:00:17]} 48. Rxa7 {[%clk 00:22:38]} {[%emt 00:00:51]} Kb8 {[%clk
00:35:27]} {[%emt 00:04:08]} 49. Ra4 {[%clk 00:22:42]} {[%emt 00:00:25]} Rc3
{[%clk 00:34:43]} {[%emt 00:01:15]} 50. Kd2 {[%clk 00:21:49]} {[%emt 00:01:23]}
Rb3 {[%clk 00:33:48]} {[%emt 00:01:21]} 51. Kc2 {[%clk 00:20:04]} {[%emt
00:02:19]} Rb6 {[%clk 00:33:35]} {[%emt 00:00:44]} 52. Kc3 {[%clk 00:20:01]}
{[%emt 00:00:32]} Rc6+ {[%clk 00:33:13]} {[%emt 00:00:52]} 53. Kd2 {[%clk
00:19:26]} {[%emt 00:01:04]} Nf3+ {[%clk 00:32:08]} {[%emt 00:01:36]} 54. Ke2
{[%clk 00:18:53]} {[%emt 00:01:04]} Ne5 {[%clk 00:31:45]} {[%emt 00:00:52]} 55.
Rda5 {[%clk 00:19:06]} {[%emt 00:00:17]} Rc3 {[%clk 00:29:27]} {[%emt
00:02:48]} 56. Rb4+ {[%clk 00:14:40]} {[%emt 00:04:55]} Kc8 {[%clk 00:29:41]}
{[%emt 00:00:18]} 57. Rd4 {[%clk 00:14:52]} {[%emt 00:00:18]} Rb3 {[%clk
00:26:27]} {[%emt 00:03:43]} 58. Ra8+ {[%clk 00:14:14]} {[%emt 00:01:08]} Kd7
{[%clk 00:26:21]} {[%emt 00:00:37]} 59. Rg8 {[%clk 00:14:24]} {[%emt 00:00:20]}
c5 {[%clk 00:26:39]} {[%emt 00:00:12]} 60. Rxg7+ {[%clk 00:13:28]} {[%emt
00:01:24]} Kc6 {[%clk 00:26:33]} {[%emt 00:00:36]} 61. Be4+ {[%clk 00:13:21]}
{[%emt 00:01:35]} Nxe4 {[%clk 00:26:45]} {[%emt 00:00:18]} 62. Rxe4 {[%clk
00:13:40]} {[%emt 00:00:11]} Kd5 {[%clk 00:25:29]} {[%emt 00:01:45]} 63. Ra4
{[%clk 00:12:43]} {[%emt 00:01:27]} Rxg3 {[%clk 00:18:56]} {[%emt 00:07:03]} 64.
Rxh7 {[%clk 00:12:45]} {[%emt 00:00:28]} c4 {[%clk 00:17:49]} {[%emt 00:01:37]}
65. Ra6 {[%clk 00:11:33]} {[%emt 00:01:42]} Nxg4 {[%clk 00:17:05]} {[%emt
00:01:14]} 66. Rg7 {[%clk 00:10:44]} {[%emt 00:01:19]} c3 {[%clk 00:13:58]}
{[%emt 00:03:37]} 67. Ra4 {[%clk 00:06:04]} {[%emt 00:05:10]} c2 {[%clk
00:08:37]} {[%emt 00:05:51]} 68. Rc7 {[%clk 00:06:26]} {[%emt 00:00:08]} Ne3
{[%clk 00:04:32]} {[%emt 00:04:35]} 69. Ra8 {[%clk 00:04:10]} {[%emt 00:02:47]}
Ke4 {[%clk 00:04:05]} {[%emt 00:00:55]} 70. Re8+ {[%clk 00:03:36]} {[%emt
00:01:06]} Kf4 {[%clk 00:04:04]} {[%emt 00:00:30]} 71. Re6 {[%clk 00:01:32]}
{[%emt 00:02:35]} Rg2+ {[%clk 00:03:35]} {[%emt 00:00:58]} 72. Kd3 {[%clk
00:01:36]} {[%emt 00:00:26]} Nd5 {[%clk 00:02:31]} {[%emt 00:01:34]} 73. Re4+
{[%clk 00:01:17]} {[%emt 00:00:50]} Kxf5 {[%clk 00:02:03]} {[%emt 00:00:57]} 74.
Rc5 {[%clk 00:01:36]} {[%emt 00:00:11]} Rg3+ {[%clk 00:01:29]} {[%emt
00:01:04]} 75. Kd4 {[%clk 00:01:39]} {[%emt 00:00:27]} Rc3 {[%clk 00:01:00]}
{[%emt 00:01:00]} 76. Rxd5+ {[%clk 00:00:54]} {[%emt 00:01:16]} Kg6 {[%clk
00:01:26]} {[%emt 00:00:03]} 77. Re1 {[%clk 00:01:03]} {[%emt 00:00:19]} c1=Q
{[%clk 00:01:46]} {[%emt 00:00:11]} 78. Rxc1 {[%clk 00:01:28]} {[%emt
00:00:05]} Rxc1 {[%clk 00:02:10]} {[%emt 00:00:06]} 79. Ke3 {[%clk 00:01:51]}
{[%emt 00:00:07]} Rf1 {[%clk 00:02:33]} {[%emt 00:00:07]} 80. Ke2 {[%clk
00:01:57]} {[%emt 00:00:25]} Rf4 {[%clk 00:02:19]} {[%emt 00:00:43]} 81. Rd3
{[%clk 00:02:20]} {[%emt 00:00:07]} Kg5 {[%clk 00:02:13]} {[%emt 00:00:36]} 82.
Ra3 {[%clk 00:02:41]} {[%emt 00:00:10]} Kh4 {[%clk 00:02:11]} {[%emt 00:00:32]}
83. Rb3 {[%clk 00:03:02]} {[%emt 00:00:09]} Kg4 {[%clk 00:02:17]} {[%emt
00:00:23]} 84. Ra3 {[%clk 00:03:24]} {[%emt 00:00:09]} f5 {[%clk 00:02:11]}
{[%emt 00:00:36]} 85. Rb3 {[%clk 00:03:47]} {[%emt 00:00:06]} 1/2-1/2

[Event "Schack-SM 2023: Mastarklassen"]
[Site "Helsingborg Arena, Mellersta Stenbocksgatan 14, Helsingborg, Sweden"]
[Date "2023.07.08"]
[Round "8.4"]
[White "Sundin, Emanuel"]
[Black "Jogstad, Daniel"]
[Result "1-0"]
[TimeControl "90 minutes for 40 moves + 30 minutes for the rest of games + 30 seconds per move from move one."]
[BlackTitle "CM"]
[WhiteElo "2103"]
[BlackElo "2131"]

1. e4 {[%clk 01:30:53]} {[%emt 00:00:07]} c5 {[%clk 01:30:56]} {[%emt
00:00:05]} 2. Nf3 {[%clk 01:30:56]} {[%emt 00:00:26]} e6 {[%clk 01:30:55]}
{[%emt 00:00:31]} 3. Nc3 {[%clk 01:31:00]} {[%emt 00:00:25]} Nc6 {[%clk
01:29:25]} {[%emt 00:02:01]} 4. Bb5 {[%clk 01:29:38]} {[%emt 00:01:52]} Nge7
{[%clk 01:20:29]} {[%emt 00:09:26]} 5. d4 {[%clk 01:29:14]} {[%emt 00:00:54]}
cxd4 {[%clk 01:20:14]} {[%emt 00:00:44]} 6. Nxd4 {[%clk 01:29:35]} {[%emt
00:00:10]} a6 {[%clk 01:14:13]} {[%emt 00:06:32]} 7. Be2 {[%clk 01:29:35]}
{[%emt 00:00:29]} g6 {[%clk 01:11:55]} {[%emt 00:02:48]} 8. Bg5 {[%clk
01:15:22]} {[%emt 00:14:42]} Bg7 {[%clk 01:07:29]} {[%emt 00:04:57]} 9. Nxc6
{[%clk 01:13:50]} {[%emt 00:02:02]} dxc6 {[%clk 00:52:26]} {[%emt 00:15:33]} 10.
Qxd8+ {[%clk 01:13:13]} {[%emt 00:01:06]} Kxd8 {[%clk 00:52:53]} {[%emt
00:00:04]} 11. O-O-O+ {[%clk 01:13:11]} {[%emt 00:00:31]} Ke8 {[%clk 00:53:00]}
{[%emt 00:00:24]} 12. Na4 {[%clk 01:12:00]} {[%emt 00:01:41]} b5 {[%clk
00:52:30]} {[%emt 00:01:01]} 13. Nc5 {[%clk 01:10:31]} {[%emt 00:01:58]} h6
{[%clk 00:41:32]} {[%emt 00:11:28]} 14. Bf4 {[%clk 00:58:41]} {[%emt 00:12:20]}
g5 {[%clk 00:34:45]} {[%emt 00:07:17]} 15. Bc7 {[%clk 00:52:04]} {[%emt
00:07:06]} Ng6 {[%clk 00:30:26]} {[%emt 00:04:50]} 16. g3 {[%clk 00:46:36]}
{[%emt 00:05:58]} Be5 {[%clk 00:29:05]} {[%emt 00:01:51]} 17. Ba5 {[%clk
00:44:31]} {[%emt 00:02:35]} Ke7 {[%clk 00:15:27]} {[%emt 00:14:09]} 18. Rd2
{[%clk 00:34:16]} {[%emt 00:10:44]} Bd6 {[%clk 00:15:51]} {[%emt 00:00:06]} 19.
Nb3 {[%clk 00:29:37]} {[%emt 00:05:10]} Ra7 {[%clk 00:14:32]} {[%emt 00:01:48]}
20. Rhd1 {[%clk 00:26:55]} {[%emt 00:03:12]} Rd7 {[%clk 00:12:12]} {[%emt
00:02:51]} 21. Rxd6 {[%clk 00:25:57]} {[%emt 00:01:27]} Rxd6 {[%clk 00:12:09]}
{[%emt 00:00:33]} 22. Bb4 {[%clk 00:25:44]} {[%emt 00:00:43]} Rhd8 {[%clk
00:12:08]} {[%emt 00:00:31]} 23. Na5 {[%clk 00:22:39]} {[%emt 00:03:35]} 1-0